[Event "Juniorallsvenskan 2019, Division 1 and 2"]
[Site "Molnlycke kulturhus, Biblioteksgatan 2, Molnlycke, Sweden"]
[Date "2019.11.22"]
[Round "1.12"]
[White "Nord, Alexander"]
[Black "Hall, Alexander"]
[Result "1-0"]
[TimeControl "90 minutes + 30 seconds per move from move one"]
[WhiteFideId "1738135"]
[BlackFideId "1738933"]
[WhiteElo "1845"]
[BlackElo "1887"]

1. d4 {[%clk 01:30:57]} {[%emt 00:00:02]} Nf6 {[%clk 01:30:57]} {[%emt
00:00:04]} 2. Nf3 {[%clk 01:31:24]} {[%emt 00:00:03]} g6 {[%clk 01:31:20]}
{[%emt 00:00:07]} 3. g3 {[%clk 01:31:45]} {[%emt 00:00:09]} Bg7 {[%clk
01:31:32]} {[%emt 00:00:18]} 4. Bg2 {[%clk 01:32:09]} {[%emt 00:00:06]} O-O
{[%clk 01:31:38]} {[%emt 00:00:24]} 5. O-O {[%clk 01:32:33]} {[%emt 00:00:07]}
d5 {[%clk 01:29:49]} {[%emt 00:02:19]} 6. c4 {[%clk 01:32:25]} {[%emt
00:00:38]} c6 {[%clk 01:20:44]} {[%emt 00:09:35]} 7. cxd5 {[%clk 01:31:16]}
{[%emt 00:01:39]} cxd5 {[%clk 01:21:06]} {[%emt 00:00:08]} 8. Nc3 {[%clk
01:31:43]} {[%emt 00:00:03]} Nc6 {[%clk 01:18:14]} {[%emt 00:03:21]} 9. Ne5
{[%clk 01:30:10]} {[%emt 00:02:03]} Nd7 {[%clk 00:48:50]} {[%emt 00:29:54]} 10.
Nxd5 {[%clk 00:57:40]} {[%emt 00:33:00]} Ndxe5 {[%clk 00:48:57]} {[%emt
00:00:23]} 11. dxe5 {[%clk 00:58:03]} {[%emt 00:00:07]} Bxe5 {[%clk 00:43:33]}
{[%emt 00:05:53]} 12. Bf4 {[%clk 00:45:57]} {[%emt 00:12:36]} Bxf4 {[%clk
00:37:17]} {[%emt 00:06:47]} 13. Nxf4 {[%clk 00:46:19]} {[%emt 00:00:07]} Qb6
{[%clk 00:34:11]} {[%emt 00:03:35]} 14. b3 {[%clk 00:43:30]} {[%emt 00:03:20]}
Rd8 {[%clk 00:30:50]} {[%emt 00:03:51]} 15. Qc1 {[%clk 00:42:39]} {[%emt
00:01:22]} Bd7 {[%clk 00:18:49]} {[%emt 00:12:27]} 16. Nd5 {[%clk 00:32:03]}
{[%emt 00:11:09]} Qa5 {[%clk 00:19:06]} {[%emt 00:00:11]} 17. b4 {[%clk
00:24:51]} {[%emt 00:07:45]} Qa4 {[%clk 00:07:53]} {[%emt 00:11:43]} 18. b5
{[%clk 00:18:24]} {[%emt 00:06:57]} Nd4 {[%clk 00:08:08]} {[%emt 00:00:14]} 19.
Nxe7+ {[%clk 00:17:41]} {[%emt 00:01:13]} Kf8 {[%clk 00:08:28]} {[%emt
00:00:09]} 20. Qg5 {[%clk 00:17:48]} {[%emt 00:00:23]} Nxe2+ {[%clk 00:08:20]}
{[%emt 00:00:39]} 21. Kh1 {[%clk 00:18:16]} {[%emt 00:00:02]} Qxb5 {[%clk
00:07:05]} {[%emt 00:01:45]} 22. Nd5 {[%clk 00:14:57]} {[%emt 00:03:49]} Qb2
{[%clk 00:02:22]} {[%emt 00:05:13]} 23. Rab1 {[%clk 00:12:31]} {[%emt
00:02:55]} Nxg3+ {[%clk 00:00:31]} {[%emt 00:02:22]} 24. fxg3 {[%clk 00:12:32]}
{[%emt 00:00:28]} h6 {[%clk 00:00:31]} {[%emt 00:00:31]} 25. Qe7+ {[%clk
00:12:18]} {[%emt 00:00:43]} 1-0

[Event "Juniorallsvenskan 2019, Division 1 and 2"]
[Site "Molnlycke kulturhus, Biblioteksgatan 2, Molnlycke, Sweden"]
[Date "2019.11.22"]
[Round "1.13"]
[White "Johansson, Stina"]
[Black "Morling, Joakim"]
[Result "0-1"]
[TimeControl "90 minutes + 30 seconds per move from move one"]
[WhiteFideId "1739026"]
[BlackFideId "1715933"]
[WhiteElo "1425"]
[BlackElo "2090"]

1. e4 {[%clk 01:30:58]} b6 {[%clk 01:30:54]} {[%emt 00:00:07]} 2. d4 {[%clk
01:30:55]} {[%emt 00:00:33]} e6 {[%clk 01:31:17]} {[%emt 00:00:07]} 3. Nc3
{[%clk 01:30:34]} {[%emt 00:00:51]} Bb7 {[%clk 01:31:15]} {[%emt 00:00:32]} 4.
Bc4 {[%clk 01:30:19]} {[%emt 00:00:45]} Bb4 {[%clk 01:31:18]} {[%emt 00:00:27]}
5. d5 {[%clk 01:26:31]} {[%emt 00:04:18]} Nf6 {[%clk 01:29:01]} {[%emt
00:02:47]} 6. Qd3 {[%clk 01:24:26]} {[%emt 00:02:35]} O-O {[%clk 01:28:23]}
{[%emt 00:01:08]} 7. Bd2 {[%clk 01:23:12]} {[%emt 00:01:43]} exd5 {[%clk
01:21:09]} {[%emt 00:07:45]} 8. Bxd5 {[%clk 01:19:32]} {[%emt 00:04:09]} Nxd5
{[%clk 01:20:18]} {[%emt 00:01:22]} 9. Nxd5 {[%clk 01:19:32]} {[%emt 00:00:30]}
Bxd2+ {[%clk 01:20:23]} {[%emt 00:00:25]} 10. Qxd2 {[%clk 01:19:48]} {[%emt
00:00:14]} Re8 {[%clk 01:19:44]} {[%emt 00:01:09]} 11. Qd3 {[%clk 01:16:35]}
{[%emt 00:03:42]} Qg5 {[%clk 01:18:16]} {[%emt 00:01:59]} 12. Ne3 {[%clk
01:11:31]} {[%emt 00:05:35]} Bxe4 {[%clk 01:18:21]} {[%emt 00:00:24]} 13. Nf3
{[%clk 01:08:42]} {[%emt 00:03:19]} Qxg2 {[%clk 01:12:45]} {[%emt 00:06:06]} 14.
Nxg2 {[%clk 01:07:46]} {[%emt 00:01:26]} Bxd3+ {[%clk 01:13:08]} {[%emt
00:00:08]} 15. Kd2 {[%clk 01:07:13]} {[%emt 00:01:02]} Be4 {[%clk 01:13:14]}
{[%emt 00:00:25]} 16. Rhe1 {[%clk 01:06:59]} {[%emt 00:00:42]} Nc6 {[%clk
01:13:28]} {[%emt 00:00:17]} 17. Re3 {[%clk 01:05:42]} {[%emt 00:01:46]} Bxf3
{[%clk 01:12:25]} {[%emt 00:01:34]} 18. Rxf3 {[%clk 01:05:53]} {[%emt
00:00:19]} Re4 {[%clk 01:12:13]} {[%emt 00:00:42]} 19. Rd1 {[%clk 01:05:39]}
{[%emt 00:00:43]} Rae8 {[%clk 01:12:16]} {[%emt 00:00:29]} 20. Kc1 {[%clk
01:05:46]} {[%emt 00:00:22]} d6 {[%clk 01:12:23]} {[%emt 00:00:23]} 21. Rc3
{[%clk 01:05:27]} {[%emt 00:00:48]} Nd4 {[%clk 01:07:59]} {[%emt 00:04:55]} 22.
Rxc7 {[%clk 01:04:01]} {[%emt 00:01:56]} a5 {[%clk 01:06:55]} {[%emt 00:01:35]}
23. Rb7 {[%clk 01:02:18]} {[%emt 00:02:12]} Ne2+ {[%clk 00:58:56]} {[%emt
00:08:29]} 24. Kb1 {[%clk 01:02:18]} {[%emt 00:00:30]} Nf4 {[%clk 00:58:54]}
{[%emt 00:00:32]} 25. Ne3 {[%clk 01:01:47]} {[%emt 00:01:01]} Nh3 {[%clk
00:58:09]} {[%emt 00:01:15]} 26. Rxb6 {[%clk 01:00:30]} {[%emt 00:01:47]} Nxf2
{[%clk 00:58:31]} {[%emt 00:00:07]} 27. Re1 {[%clk 01:00:33]} {[%emt 00:00:27]}
Ng4 {[%clk 00:58:03]} {[%emt 00:00:58]} 28. Rxd6 {[%clk 00:59:31]} {[%emt
00:01:33]} Rxe3 {[%clk 00:58:14]} {[%emt 00:00:19]} 29. Red1 {[%clk 00:59:19]}
{[%emt 00:00:41]} f5 {[%clk 00:57:10]} {[%emt 00:01:35]} 30. R6d5 {[%clk
00:58:39]} {[%emt 00:01:10]} R3e5 {[%clk 00:56:49]} {[%emt 00:00:50]} 31. R5d4
{[%clk 00:58:46]} {[%emt 00:00:24]} Nxh2 {[%clk 00:56:57]} {[%emt 00:00:23]} 32.
b3 {[%clk 00:58:40]} {[%emt 00:00:35]} g5 {[%clk 00:56:16]} {[%emt 00:01:11]}
33. Rg1 {[%clk 00:58:17]} {[%emt 00:00:53]} Re1+ {[%clk 00:56:32]} {[%emt
00:00:14]} 34. Rxe1 {[%clk 00:58:39]} {[%emt 00:00:08]} Rxe1+ {[%clk 00:56:59]}
{[%emt 00:00:03]} 35. Kb2 {[%clk 00:58:59]} {[%emt 00:00:09]} Re5 {[%clk
00:57:11]} {[%emt 00:00:18]} 36. Rd2 {[%clk 00:58:59]} {[%emt 00:00:30]} Nf3
{[%clk 00:57:31]} {[%emt 00:00:10]} 37. Rf2 {[%clk 00:59:09]} {[%emt 00:00:20]}
g4 {[%clk 00:57:56]} {[%emt 00:00:05]} 38. a3 {[%clk 00:58:51]} {[%emt
00:00:47]} h5 {[%clk 00:58:21]} {[%emt 00:00:06]} 39. Rf1 {[%clk 00:59:10]}
{[%emt 00:00:10]} h4 {[%clk 00:58:41]} {[%emt 00:00:11]} 40. Rh1 {[%clk
00:59:16]} {[%emt 00:00:22]} h3 {[%clk 00:59:06]} {[%emt 00:00:07]} 41. Kc3
{[%clk 00:59:36]} {[%emt 00:00:10]} Re1 {[%clk 00:59:26]} {[%emt 00:00:10]} 42.
Rxe1 {[%clk 00:59:53]} {[%emt 00:00:14]} Nxe1 {[%clk 00:59:52]} {[%emt
00:00:04]} 43. Kd2 {[%clk 01:00:17]} {[%emt 00:00:05]} Ng2 {[%clk 01:00:06]}
{[%emt 00:00:17]} 44. Ke2 {[%clk 01:00:37]} {[%emt 00:00:09]} h2 {[%clk
01:00:21]} {[%emt 00:00:15]} 45. Kf2 {[%clk 01:01:00]} {[%emt 00:00:07]} h1=Q
{[%clk 01:00:41]} {[%emt 00:00:10]} 46. c4 {[%clk 01:01:14]} {[%emt 00:00:17]}
f4 {[%clk 01:00:58]} {[%emt 00:00:13]} 47. c5 {[%clk 01:01:22]} {[%emt
00:00:20]} Qe1+ {[%clk 01:01:19]} {[%emt 00:00:10]} 48. Kxg2 {[%clk 01:01:40]}
{[%emt 00:00:12]} Qe2+ {[%clk 01:01:43]} {[%emt 00:00:07]} 49. Kg1 {[%clk
01:01:59]} {[%emt 00:00:10]} f3 {[%clk 01:02:04]} {[%emt 00:00:09]} 50. c6
{[%clk 01:02:20]} {[%emt 00:00:09]} Qg2# {[%clk 01:02:30]} {[%emt 00:00:04]}
0-1

[Event "Juniorallsvenskan 2019, Division 1 and 2"]
[Site "Molnlycke kulturhus, Biblioteksgatan 2, Molnlycke, Sweden"]
[Date "2019.11.22"]
[Round "1.14"]
[White "Tornberg, Carlos"]
[Black "Nystedt, Ludvig"]
[Result "1-0"]
[TimeControl "90 minutes + 30 seconds per move from move one"]
[WhiteFideId "1733478"]
[BlackFideId "1759540"]
[WhiteElo "1884"]
[BlackElo "1322"]

1. e4 {[%clk 01:30:58]} {[%emt 00:00:02]} e6 {[%clk 01:30:59]} {[%emt
00:00:01]} 2. b3 {[%clk 01:31:19]} {[%emt 00:00:09]} d5 {[%clk 01:31:14]}
{[%emt 00:00:15]} 3. Bb2 {[%clk 01:31:43]} {[%emt 00:00:06]} dxe4 {[%clk
01:30:43]} {[%emt 00:01:01]} 4. Nc3 {[%clk 01:32:02]} {[%emt 00:00:11]} Nf6
{[%clk 01:30:17]} {[%emt 00:00:56]} 5. g4 {[%clk 01:32:17]} {[%emt 00:00:14]}
h6 {[%clk 01:26:14]} {[%emt 00:04:33]} 6. Bg2 {[%clk 01:32:25]} {[%emt
00:00:22]} Bc5 {[%clk 01:18:39]} {[%emt 00:08:05]} 7. Qe2 {[%clk 01:30:37]}
{[%emt 00:02:18]} Nc6 {[%clk 01:14:12]} {[%emt 00:04:58]} 8. Nxe4 {[%clk
01:27:02]} {[%emt 00:04:05]} Nxe4 {[%clk 01:14:20]} {[%emt 00:00:22]} 9. Qxe4
{[%clk 01:26:52]} {[%emt 00:00:40]} Bd4 {[%clk 01:10:54]} {[%emt 00:03:56]} 10.
Bxd4 {[%clk 01:24:35]} {[%emt 00:02:46]} Qxd4 {[%clk 01:08:13]} {[%emt
00:03:11]} 11. Qxd4 {[%clk 01:24:38]} {[%emt 00:00:28]} Nxd4 {[%clk 01:08:34]}
{[%emt 00:00:08]} 12. O-O-O {[%clk 01:24:43]} {[%emt 00:00:25]} Rb8 {[%clk
01:06:25]} {[%emt 00:02:39]} 13. c3 {[%clk 01:19:43]} {[%emt 00:05:30]} Nb5
{[%clk 01:06:15]} {[%emt 00:00:40]} 14. Nf3 {[%clk 01:19:04]} {[%emt 00:01:10]}
b6 {[%clk 01:03:20]} {[%emt 00:03:25]} 15. Ne5 {[%clk 01:15:46]} {[%emt
00:03:47]} Bb7 {[%clk 00:59:39]} {[%emt 00:04:11]} 16. Nc6 {[%clk 01:13:37]}
{[%emt 00:02:38]} O-O {[%clk 00:50:34]} {[%emt 00:09:36]} 17. Rhg1 {[%clk
01:12:31]} {[%emt 00:01:37]} Bxc6 {[%clk 00:48:14]} {[%emt 00:02:50]} 18. Bxc6
{[%clk 01:12:39]} {[%emt 00:00:21]} Nd6 {[%clk 00:48:35]} {[%emt 00:00:09]} 19.
g5 {[%clk 01:09:28]} {[%emt 00:03:42]} hxg5 {[%clk 00:44:25]} {[%emt 00:04:40]}
20. Rxg5 {[%clk 01:06:59]} {[%emt 00:02:59]} f6 {[%clk 00:41:34]} {[%emt
00:03:21]} 21. Rg4 {[%clk 01:03:58]} {[%emt 00:03:31]} Kf7 {[%clk 00:39:57]}
{[%emt 00:02:06]} 22. Rdg1 {[%clk 01:03:28]} {[%emt 00:01:00]} Nf5 {[%clk
00:38:49]} {[%emt 00:01:39]} 23. Be4 {[%clk 01:02:13]} {[%emt 00:01:44]} Rg8
{[%clk 00:38:46]} {[%emt 00:00:33]} 24. d4 {[%clk 01:01:32]} {[%emt 00:01:11]}
g5 {[%emt 00:06:05]} 25. d5 {[%clk 01:01:23]} {[%emt 00:00:36]} Rh8 {[%clk
00:31:27]} {[%emt 00:02:17]} 26. dxe6+ {[%clk 00:59:53]} {[%emt 00:02:01]} Kxe6
{[%clk 00:30:57]} {[%emt 00:00:59]} 27. Re1 {[%clk 00:59:34]} {[%emt 00:00:49]}
Rxh2 {[%clk 00:30:04]} {[%emt 00:01:23]} 28. Bd3+ {[%clk 00:59:04]} {[%emt
00:01:00]} Kf7 {[%clk 00:30:07]} {[%emt 00:00:27]} 29. Bxf5 {[%clk 00:59:16]}
{[%emt 00:00:19]} Rxf2 {[%clk 00:30:21]} {[%emt 00:00:16]} 30. Bc2 {[%clk
00:59:12]} {[%emt 00:00:34]} Rh8 {[%clk 00:29:43]} {[%emt 00:01:09]} 31. Rd1
{[%clk 00:58:39]} {[%emt 00:01:03]} Rhh2 {[%clk 00:29:35]} {[%emt 00:00:37]} 32.
Bb1 {[%clk 00:59:01]} {[%emt 00:00:08]} Kg7 {[%clk 00:27:36]} {[%emt 00:02:30]}
33. Rgg1 {[%clk 00:56:23]} {[%emt 00:03:07]} Rf3 {[%clk 00:26:54]} {[%emt
00:01:12]} 34. Rd7+ {[%clk 00:56:41]} {[%emt 00:00:13]} Kf8 {[%clk 00:27:18]}
{[%emt 00:00:06]} 35. Rxc7 {[%clk 00:56:59]} {[%emt 00:00:12]} Ke8 {[%clk
00:26:33]} {[%emt 00:01:14]} 36. Rd1 {[%clk 00:57:12]} {[%emt 00:00:16]} 1-0

[Event "Juniorallsvenskan 2019, Division 1 and 2"]
[Site "Molnlycke kulturhus, Biblioteksgatan 2, Molnlycke, Sweden"]
[Date "2019.11.22"]
[Round "1.15"]
[White "Johansson, Sigge"]
[Black "Ekberg, Karl"]
[Result "0-1"]
[TimeControl "90 minutes + 30 seconds per move from move one"]
[WhiteFideId "1742612"]
[BlackFideId "1726277"]
[WhiteElo "1245"]
[BlackElo "1867"]

1. e4 {[%clk 01:30:54]} {[%emt 00:00:05]} c6 {[%clk 01:30:54]} {[%emt
00:00:07]} 2. d4 {[%clk 01:31:04]} {[%emt 00:00:20]} d5 {[%clk 01:31:17]}
{[%emt 00:00:06]} 3. e5 {[%clk 01:30:07]} {[%emt 00:01:26]} Bf5 {[%clk
01:31:41]} {[%emt 00:00:06]} 4. Bf4 {[%clk 01:28:33]} {[%emt 00:02:04]} e6
{[%clk 01:31:26]} {[%emt 00:00:46]} 5. Bd3 {[%clk 01:28:23]} {[%emt 00:00:39]}
Bxd3 {[%clk 01:27:54]} {[%emt 00:04:02]} 6. Qxd3 {[%clk 01:27:59]} {[%emt
00:00:54]} Qb6 {[%clk 01:27:57]} {[%emt 00:00:28]} 7. Nc3 {[%clk 01:21:37]}
{[%emt 00:06:51]} Qa6 {[%clk 01:25:53]} {[%emt 00:02:35]} 8. Qxa6 {[%clk
01:20:22]} {[%emt 00:01:44]} Nxa6 {[%clk 01:26:16]} {[%emt 00:00:07]} 9. a3
{[%clk 01:20:40]} {[%emt 00:00:13]} Ne7 {[%clk 01:24:56]} {[%emt 00:01:50]} 10.
Nf3 {[%clk 01:19:49]} {[%emt 00:01:20]} Ng6 {[%clk 01:20:31]} {[%emt 00:04:56]}
11. Be3 {[%clk 01:17:07]} {[%emt 00:03:12]} Be7 {[%clk 01:20:50]} {[%emt
00:00:11]} 12. O-O {[%clk 01:17:10]} {[%emt 00:00:26]} O-O {[%clk 01:21:11]}
{[%emt 00:00:09]} 13. Ne2 {[%clk 01:13:27]} {[%emt 00:04:13]} Rac8 {[%clk
01:16:24]} {[%emt 00:05:17]} 14. c3 {[%clk 01:12:29]} {[%emt 00:01:28]} c5
{[%clk 01:08:10]} {[%emt 00:08:45]} 15. Rac1 {[%clk 01:11:34]} {[%emt
00:01:25]} f6 {[%clk 01:07:51]} {[%emt 00:00:49]} 16. Ng3 {[%clk 01:06:43]}
{[%emt 00:05:20]} fxe5 {[%clk 01:02:19]} {[%emt 00:06:03]} 17. Nxe5 {[%clk
01:01:36]} {[%emt 00:05:36]} Nxe5 {[%clk 01:02:31]} {[%emt 00:00:19]} 18. dxe5
{[%clk 01:02:00]} {[%emt 00:00:05]} Nb8 {[%clk 01:00:05]} {[%emt 00:02:56]} 19.
Ne2 {[%clk 01:00:21]} {[%emt 00:02:10]} Nd7 {[%clk 00:59:33]} {[%emt 00:01:02]}
20. f4 {[%clk 01:00:31]} {[%emt 00:00:19]} Nb6 {[%clk 00:55:33]} {[%emt
00:04:30]} 21. b3 {[%clk 00:59:47]} {[%emt 00:01:15]} a5 {[%clk 00:49:57]}
{[%emt 00:06:05]} 22. a4 {[%clk 00:58:51]} {[%emt 00:01:27]} Nd7 {[%clk
00:50:15]} {[%emt 00:00:12]} 23. Rfd1 {[%clk 00:57:55]} {[%emt 00:01:25]} Rb8
{[%clk 00:37:14]} {[%emt 00:13:31]} 24. Rb1 {[%clk 00:55:31]} {[%emt 00:02:53]}
g6 {[%clk 00:36:48]} {[%emt 00:00:58]} 25. g3 {[%clk 00:55:26]} {[%emt
00:00:34]} Rfd8 {[%clk 00:36:22]} {[%emt 00:00:56]} 26. Bf2 {[%clk 00:54:32]}
{[%emt 00:01:24]} Rbc8 {[%clk 00:36:01]} {[%emt 00:00:52]} 27. Rb2 {[%clk
00:52:06]} {[%emt 00:02:55]} Nb8 {[%clk 00:33:25]} {[%emt 00:03:07]} 28. Rbb1
{[%clk 00:50:51]} {[%emt 00:01:45]} Na6 {[%clk 00:32:58]} {[%emt 00:00:58]} 29.
Kg2 {[%clk 00:49:57]} {[%emt 00:01:24]} Nc7 {[%clk 00:32:51]} {[%emt 00:00:37]}
30. Ra1 {[%clk 00:49:33]} {[%emt 00:00:53]} Rb8 {[%clk 00:26:32]} {[%emt
00:06:50]} 31. Rab1 {[%clk 00:48:13]} {[%emt 00:01:50]} b5 {[%clk 00:24:23]}
{[%emt 00:02:38]} 32. Kf1 {[%clk 00:45:35]} {[%emt 00:03:08]} bxa4 {[%clk
00:21:43]} {[%emt 00:03:12]} 33. bxa4 {[%clk 00:45:57]} {[%emt 00:00:08]} Kf7
{[%clk 00:21:07]} {[%emt 00:01:05]} 34. Kg2 {[%clk 00:45:43]} {[%emt 00:00:43]}
Rdc8 {[%clk 00:20:21]} {[%emt 00:01:16]} 35. Ra1 {[%clk 00:44:22]} {[%emt
00:01:50]} Rb2 {[%clk 00:18:52]} {[%emt 00:01:59]} 36. Kf1 {[%clk 00:44:41]}
{[%emt 00:00:11]} Rcb8 {[%clk 00:18:50]} {[%emt 00:00:33]} 37. Ke1 {[%clk
00:44:01]} {[%emt 00:01:10]} Na6 {[%clk 00:16:42]} {[%emt 00:02:38]} 38. Rdc1
{[%clk 00:43:33]} {[%emt 00:00:57]} c4 {[%clk 00:12:57]} {[%emt 00:04:15]} 39.
Nd4 {[%clk 00:43:29]} {[%emt 00:00:35]} Nc5 {[%clk 00:13:14]} {[%emt 00:00:13]}
40. Rc2 {[%clk 00:43:11]} {[%emt 00:00:48]} Rxc2 {[%clk 00:11:48]} {[%emt
00:01:55]} 41. Nxc2 {[%clk 00:43:34]} {[%emt 00:00:06]} Nd3+ {[%clk 00:12:10]}
{[%emt 00:00:08]} 42. Ke2 {[%clk 00:43:52]} {[%emt 00:00:13]} Nxf2 {[%clk
00:12:34]} {[%emt 00:00:06]} 43. Kxf2 {[%clk 00:43:57]} {[%emt 00:00:25]} Rb3
{[%clk 00:12:07]} {[%emt 00:00:58]} 44. Nd4 {[%clk 00:43:35]} {[%emt 00:00:52]}
Rxc3 {[%clk 00:12:27]} {[%emt 00:00:09]} 45. Nc6 {[%clk 00:43:57]} {[%emt
00:00:08]} Rb3 {[%clk 00:07:15]} {[%emt 00:05:43]} 46. Nxa5 {[%clk 00:42:53]}
{[%emt 00:01:34]} Rb6 {[%clk 00:07:39]} {[%emt 00:00:06]} 47. Rc1 {[%clk
00:43:08]} {[%emt 00:00:15]} Bb4 {[%clk 00:07:01]} {[%emt 00:01:08]} 48. Nxc4
{[%clk 00:43:32]} {[%emt 00:00:06]} dxc4 {[%clk 00:07:26]} {[%emt 00:00:05]} 49.
Rxc4 {[%clk 00:43:56]} {[%emt 00:00:06]} Be7 {[%clk 00:06:39]} {[%emt
00:01:17]} 50. Rc2 {[%clk 00:43:57]} {[%emt 00:00:27]} Rb3 {[%clk 00:06:45]}
{[%emt 00:00:26]} 51. Ra2 {[%clk 00:43:49]} {[%emt 00:00:36]} Ra3 {[%clk
00:02:36]} {[%emt 00:04:41]} 52. Rxa3 {[%clk 00:44:13]} {[%emt 00:00:05]} Bxa3
{[%clk 00:03:03]} {[%emt 00:00:04]} 53. a5 {[%clk 00:44:33]} {[%emt 00:00:10]}
Ke7 {[%clk 00:03:24]} {[%emt 00:00:09]} 54. a6 {[%clk 00:44:54]} {[%emt
00:00:09]} Kd7 {[%clk 00:03:47]} {[%emt 00:00:07]} 55. Kf3 {[%clk 00:45:11]}
{[%emt 00:00:13]} Kc7 {[%clk 00:03:54]} {[%emt 00:00:23]} 56. Kg4 {[%clk
00:45:32]} {[%emt 00:00:08]} Be7 {[%clk 00:04:15]} {[%emt 00:00:09]} 57. h4
{[%clk 00:45:40]} {[%emt 00:00:22]} h5+ {[%clk 00:02:34]} {[%emt 00:02:11]} 58.
Kh3 {[%clk 00:46:04]} {[%emt 00:00:07]} Kb6 {[%clk 00:02:31]} {[%emt 00:00:33]}
59. g4 {[%clk 00:45:09]} {[%emt 00:01:25]} Kxa6 {[%clk 00:02:06]} {[%emt
00:00:55]} 60. f5 {[%clk 00:45:22]} {[%emt 00:00:16]} hxg4+ {[%clk 00:02:05]}
{[%emt 00:00:31]} 61. Kxg4 {[%clk 00:45:40]} {[%emt 00:00:12]} exf5+ {[%clk
00:02:25]} {[%emt 00:00:11]} 62. Kf4 {[%clk 00:46:07]} {[%emt 00:01:22]} Bxh4
{[%clk 00:04:40]} {[%emt 00:00:10]} 0-1

[Event "Juniorallsvenskan 2019, Division 1 and 2"]
[Site "Molnlycke kulturhus, Biblioteksgatan 2, Molnlycke, Sweden"]
[Date "2019.11.22"]
[Round "1.16"]
[White "Ostenfeld, Valentin"]
[Black "Lyngsjo, Luke"]
[Result "1-0"]
[TimeControl "90 minutes + 30 seconds per move from move one"]
[WhiteFideId "1759183"]
[BlackFideId "1755811"]
[WhiteElo "1856"]
[BlackElo "1211"]

1. e4 {[%clk 01:30:54]} {[%emt 00:00:05]} e5 {[%clk 01:30:42]} {[%emt
00:00:18]} 2. Nf3 {[%clk 01:31:16]} {[%emt 00:00:08]} Nf6 {[%clk 01:31:04]}
{[%emt 00:00:08]} 3. Nxe5 {[%clk 01:31:12]} {[%emt 00:00:34]} d6 {[%clk
01:31:11]} {[%emt 00:00:22]} 4. Nf3 {[%clk 01:31:14]} {[%emt 00:00:29]} Nxe4
{[%clk 01:31:28]} {[%emt 00:00:12]} 5. d4 {[%clk 01:31:33]} {[%emt 00:00:12]}
d5 {[%clk 01:31:20]} {[%emt 00:00:38]} 6. Bd3 {[%clk 01:31:52]} {[%emt
00:00:10]} Bf5 {[%clk 01:30:39]} {[%emt 00:01:12]} 7. O-O {[%clk 01:32:12]}
{[%emt 00:00:10]} Be7 {[%clk 01:28:40]} {[%emt 00:02:28]} 8. Re1 {[%clk
01:32:18]} {[%emt 00:00:24]} O-O {[%clk 01:28:20]} {[%emt 00:00:51]} 9. c4
{[%clk 01:32:07]} {[%emt 00:00:41]} c6 {[%clk 01:26:44]} {[%emt 00:02:06]} 10.
cxd5 {[%clk 01:31:53]} {[%emt 00:00:44]} cxd5 {[%clk 01:26:54]} {[%emt
00:00:20]} 11. Nc3 {[%clk 01:31:41]} {[%emt 00:00:42]} Bb4 {[%clk 01:22:42]}
{[%emt 00:04:40]} 12. Qc2 {[%clk 01:29:16]} {[%emt 00:02:57]} Re8 {[%clk
01:21:05]} {[%emt 00:02:07]} 13. a3 {[%clk 01:28:12]} {[%emt 00:01:34]} Bxc3
{[%clk 01:20:21]} {[%emt 00:01:14]} 14. bxc3 {[%clk 01:28:29]} {[%emt
00:00:13]} Nd7 {[%clk 01:18:46]} {[%emt 00:02:05]} 15. Bb2 {[%clk 01:22:00]}
{[%emt 00:06:59]} Ndf6 {[%clk 01:15:45]} {[%emt 00:03:31]} 16. Ne5 {[%clk
01:21:04]} {[%emt 00:01:25]} Nd7 {[%clk 01:13:37]} {[%emt 00:02:39]} 17. f3
{[%clk 01:20:23]} {[%emt 00:01:12]} Nxe5 {[%clk 01:11:29]} {[%emt 00:02:37]} 18.
dxe5 {[%clk 01:18:03]} {[%emt 00:02:50]} Qb6+ {[%clk 01:10:23]} {[%emt
00:01:36]} 19. Kf1 {[%clk 01:18:28]} {[%emt 00:00:06]} Rac8 {[%clk 00:55:59]}
{[%emt 00:14:54]} 20. fxe4 {[%clk 01:18:30]} {[%emt 00:00:27]} dxe4 {[%clk
00:55:19]} {[%emt 00:01:10]} 21. Bxe4 {[%clk 01:18:37]} {[%emt 00:00:23]} Bxe4
{[%clk 00:54:53]} {[%emt 00:00:56]} 22. Rxe4 {[%clk 01:18:46]} {[%emt
00:00:21]} Qg6 {[%clk 00:52:53]} {[%emt 00:02:30]} 23. Re2 {[%clk 01:18:36]}
{[%emt 00:00:41]} Qxc2 {[%clk 00:52:03]} {[%emt 00:01:19]} 24. Rxc2 {[%clk
01:18:51]} {[%emt 00:00:15]} Rxe5 {[%clk 00:52:22]} {[%emt 00:00:10]} 25. Re1
{[%clk 01:18:59]} {[%emt 00:00:23]} Rd5 {[%clk 00:48:21]} {[%emt 00:04:29]} 26.
Rce2 {[%clk 01:19:19]} {[%emt 00:00:11]} Rdd8 {[%clk 00:47:21]} {[%emt
00:01:30]} 27. Re7 {[%clk 01:19:16]} {[%emt 00:00:34]} Rb8 {[%clk 00:46:45]}
{[%emt 00:01:05]} 28. c4 {[%clk 01:19:36]} {[%emt 00:00:11]} Kf8 {[%clk
00:46:17]} {[%emt 00:00:57]} 29. Bc3 {[%clk 01:19:11]} {[%emt 00:00:55]} Rdc8
{[%clk 00:44:48]} {[%emt 00:01:59]} 30. Bb4 {[%clk 01:19:34]} {[%emt 00:00:09]}
Kg8 {[%clk 00:44:40]} {[%emt 00:00:38]} 31. Bd6 {[%clk 01:19:46]} {[%emt
00:00:16]} 1-0